Cogmind - Beta 14 @@@ ROGUE MODE // 2025.03.12 @ 19:28:14 Player: BoomBlip Result: Destroyed by P-80 Master with Gamma Rifle Performance ------------- Evolutions (5) 2500 Regions Visited (12) 2400 Robots Destroyed (85) 425 Value Destroyed (3177) 3177 Prototype IDs (9) 180 Alien Tech Used (0) 0 Bonus (2659) 2659 TOTAL SCORE: 11341 Bonus ------- Aligned with FarCom 300 Met Warlord at Base 500 MAIN.C Attacked Warlord 500 Warlord Defense Kills 1374 Friendly Fire -15 Cogmind --------- Core Integrity 0/1000 Matter 300/300 Energy 99/100 System Corruption 17% Temperature Cool (0) Movement Core (50) Location -5/Warlord Parts ------- > --- POWER (1) -------- (None) > --- PROPULSION (4) --- (None) > --- UTILITY (9) ------ (None) > --- WEAPON (3) ------- (None) > --- INVENTORY (5) ---- Light Nuclear Core Humpback Hardened Heavy Armor Plating Peak State ------------ > --- POWER ------------ Particle Reactor > --- PROPULSION ------- Improved Medium Treads Spiked Medium Treads Armored Medium Treads Armored Medium Treads > --- UTILITY ---------- Advanced Heat Sink Advanced Cooling System Huge Storage Unit Improved Targeting Computer Advanced Targeting Computer Hardened Heavy Armor Plating Hacking Suite Minesniffer Drone Bay > --- WEAPON ----------- Vortex Rifle Vortex Catalyst Activator > --- INVENTORY -------- Nuclear Core Light Nuclear Core Light Nuclear Core Improved Deuterium Engine Micro Nuclear Core Armored Treads Armored Medium Treads Field Propulsion Drive Advanced Heat Sink Humpback Hardened Heavy Armor Plating Tractor Beam Field Laser Vortex Rifle Vortex Rifle Long-range Proton Cannon Flak Gun Flak Cannon Thermoblaster Thermoblaster Power Maul Makeshift Spear Lance [Rating: 103] Favorites ----------- Power Micro Nuclear Core Engine Heavy Deuterium Engine Power Core Micro Nuclear Core Reactor Light Antimatter Reactor Propulsion Light Treads Treads Light Treads Leg Aluminum Leg Wheel Compact Wheel Flight Unit Xenon Bombardment Thruster Utility Huge Storage Unit Device Improved Heat Sink Storage Huge Storage Unit Processor Improved Targeting Computer Hackware Hacking Suite Protection Hardened Heavy Armor Plating Weapon Flak Gun Energy Gun Heavy Gatling Laser Energy Cannon Heavy Ion Cannon Ballistic Gun Flak Gun Ballistic Cannon Flak Cannon Launcher Vortex Catalyst Activator Build | -11 -10 -10 -10 -9 -8 -7 -7 -7 -6 -5 -5 -5 ------- Run | Yrd Mat Min Exi Min Mat Fac Low Low Fac Fac Upp War Slots Evolved 10 | . . . . . 4 2 . . 2 2 . . Power . | . . . . . . . . . . . . . Propulsion 2 | . . . . . 2 . . . . . . . Utility 7 | . . . . . 2 2 . . 2 1 . . Weapon 1 | . . . . . . . . . . 1 . . Parts Attached 88 | . 5 6 . 2 11 12 3 . 4 21 5 19 Power 10 | . 1 1 . 1 . 4 . . . 1 1 1 Engine 3 | . 1 1 . . . 1 . . . . . . Core 5 | . . . . 1 . 3 . . . 1 . . Reactor 2 | . . . . . . . . . . . 1 1 Propulsion 28 | . 2 1 . . 5 1 2 . 3 5 1 8 Treads 11 | . . . . . 4 . . . . . . 7 Leg 1 | . . . . . . . . . . . . 1 Wheel 10 | . 2 1 . . 1 . 2 . 3 . 1 . Hover . | . . . . . . . . . . . . . Flight 6 | . . . . . . 1 . . . 5 . . Utility 24 | . 1 1 . . 3 3 1 . 1 8 1 5 Device 16 | . . 1 . . 3 1 1 . 1 6 . 3 Storage 1 | . 1 . . . . . . . . . . . Processor 2 | . . . . . . 1 . . . 1 . . Hackware 1 | . . . . . . 1 . . . . . . Protection 4 | . . . . . . . . . . 1 1 2 Artifact . | . . . . . . . . . . . . . Weapon 26 | . 1 3 . 1 3 4 . . . 7 2 5 Energy Gun 12 | . 1 2 . 1 . 2 . . . 2 . 4 Energy Cannon 2 | . . . . . . 1 . . . 1 . . Ballistic Gun 9 | . . 1 . . 3 1 . . . 2 2 . Ballistic Cannon 2 | . . . . . . . . . . 2 . . Launcher 1 | . . . . . . . . . . . . 1 Special Weapon . | . . . . . . . . . . . . . Impact Weapon . | . . . . . . . . . . . . . Slashing Weapon . | . . . . . . . . . . . . . Piercing Weapon . | . . . . . . . . . . . . . Special Melee Weapon . | . . . . . . . . . . . . . Unidentified Prototypes 9 | . . . . . . 3 . . . 2 . 4 Parts Lost 42 | . 1 4 . 1 1 7 . . 5 3 8 12 Power 4 | . . 1 . . . 1 . . . 1 1 . Propulsion 16 | . . 1 . 1 1 4 . . 2 1 3 3 Utility 9 | . . . . . . . . . 2 1 2 4 Weapon 13 | . 1 2 . . . 2 . . 1 . 2 5 Highest Loss Streak 12 | . 1 4 . 1 1 6 . . 5 1 6 12 To Critical Strikes . | . . . . . . . . . . . . . Average Slot Usage (%) 84 | . 83 84 100 98 92 85 76 84 78 78 82 79 Engine 4 | . 14 6 14 2 . 2 7 7 6 2 . . Core 2 | . . . . 11 9 4 . . . 2 1 . Reactor 1 | . . . . . . . . . . . 2 4 Treads 5 | . . . . . 24 17 . . . . . 4 Wheel 9 | . 26 26 28 26 9 . 1 15 18 1 2 4 Flight 3 | . . . . . . 2 6 . . 5 12 4 Device 16 | . . 8 14 14 21 24 23 23 21 20 13 16 Storage 7 | . 14 14 14 14 9 7 7 7 6 5 5 4 Processor 6 | . . . . . . 7 7 7 6 9 11 10 Hackware 3 | . . . . . . 2 7 7 6 5 5 4 Protection 2 | . . . . . . . . . . 3 4 5 Energy Gun 8 | . 23 18 14 14 9 8 7 7 4 6 2 3 Energy Cannon 1 | . . . . . . 2 7 7 6 2 . . Ballistic Gun 6 | . 3 9 14 14 9 3 . . . 3 13 6 Peak Build Rating 103 | . 7 7 11 18 32 64 64 37 44 94 77 103 Average Rating 51 | . 5 5 10 16 25 43 59 37 38 85 66 79 On Entrance 30 | 6 6 6 7 11 17 31 64 37 37 34 75 61 Naked Turns 17 | . . . . . . . . . . . . 17 Heaviest Build 160 | 12 89 89 87 93 97 104 104 104 107 136 130 160 Greatest Support 112 | 20 26 26 26 26 80 80 50 20 58 50 24 112 Greatest Overweight (x) 34 | . 3 5 3 9 4 2 34 5 5 5 8 9 Average Overweight (x) 4 | . 2 3 3 3 2 1 2 5 2 2 7 7 Largest Inventory Capacity 25 | . 25 25 25 25 25 25 25 25 25 25 25 25 Average Capacity 24 | . 24 25 25 25 25 25 25 25 25 25 25 24 Most Carried 25 | . 9 9 15 21 25 25 25 25 25 25 22 25 Average Carried 19 | . 7 7 13 19 21 22 24 25 25 23 19 22 Final Capacity 25 | 8 25 25 25 25 25 25 25 25 25 25 25 5 Final Carried 25 | 6 8 9 15 21 23 25 25 25 25 21 19 5 Class Distribution -------------------- 47% | Mutant 24% | Scavenger-Gunner 22% | Gunner 6% | Scavenger-Mutant Dominant Class ---------------- Mutant | -10/Materials Mutant | -10/Mines Mutant | -10/Exiles Mutant | -9/Mines Mutant | -8/Materials Mutant | -7/Factory Mutant | -7/Lower Caves Mutant | -7/Lower Caves Mutant | -6/Factory Gunner | -5/Factory Scavenger-Gunner | -5/Upper Caves Scavenger-Gunner | -5/Warlord Resources | -11 -10 -10 -10 -9 -8 -7 -7 -7 -6 -5 -5 -5 ----------- Run | Yrd Mat Min Exi Min Mat Fac Low Low Fac Fac Upp War Matter Collected 1854 | 200 84 73 . 20 189 159 30 . 23 513 297 266 Remotely 144 | . . . . . . 114 30 . . . . . Salvage Created 3215 | . 181 136 . . 253 454 519 . 127 857 507 181 Parts 138 | . 9 9 . . 23 18 20 . . 32 22 5 Haulers Intercepted . | . . . . . . . . . . . . . Recyclers Shooed 5 | . . . . . . 1 . . . 4 . . Parts Field Recycled . | . . . . . . . . . . . . . Retrieved Matter . | . . . . . . . . . . . . . Parts Self-Destructed 37 | . . . . . . . 17 . . . 20 . Prevented 1 | . . . . . . . 1 . . . . . Kills | -11 -10 -10 -10 -9 -8 -7 -7 -7 -6 -5 -5 -5 ------- Run | Yrd Mat Min Exi Min Mat Fac Low Low Fac Fac Upp War Combat Hostiles Destroyed 72 | . 8 5 . . 11 9 6 . . 12 12 9 Melee 1 | . 1 . . . . . . . . . . . Guns 55 | . 7 5 . . 11 8 . . . 9 12 3 Cannons 9 | . . . . . . . 6 . . 3 . . AOE 6 | . . . . . . . . . . . . 6 Classes Destroyed 18 | . 2 . . . 3 2 1 . . 4 1 5 Worker 2 | . . . . . 1 . . . . 1 . . Builder 2 | . . . . . 1 . . . . 1 . . Recycler 5 | . . . . . . 2 . . 1 2 . . Mechanic 1 | . . . . . . . . . . . . 1 Operator 2 | . . . . . . 1 . . . 1 . . Watcher 1 | . . . . . . . . . . 1 . . Swarmer 27 | . 6 3 . . 8 6 . . . . 4 . Grunt 23 | . 2 2 . . . 2 4 . . 6 7 . Brawler 1 | . . . . . . . . . . . 1 . Duelist 1 | . . . . . . . 1 . . . . . Protector 2 | . . . . . . . . . . . . 2 Sentry 6 | . . . . . 3 1 1 . . 1 . . Demolisher 1 | . . . . . . . . . . . . 1 Specialist 2 | . . . . . . . . . . 2 . . Programmer 6 | . . . . . . . . . . 2 . 4 Heavy 1 | . . . . . . . . . . 1 . . Striker 1 | . . . . . . . . . . . . 1 Executioner 1 | . . . . . . . . . . . . 1 Best Kill Streak 9 | . 4 3 . . 5 9 3 . 1 3 4 4 Combat Bots Only 4 | . 4 3 . . 4 4 3 . . 3 4 4 Max Kills in Single Turn 3 | . 1 1 . . 2 1 1 . 1 2 2 3 Gunslinging 1 | . . . . . . . . . . . 1 . Exploded 3 | . . . . . . . . . . . . 3 Melee 1 | . 1 . . . . . . . . . . . Uniques/NPCs Destroyed . | . . . . . . . . . . . . . Combat | -11 -10 -10 -10 -9 -8 -7 -7 -7 -6 -5 -5 -5 -------- Run | Yrd Mat Min Exi Min Mat Fac Low Low Fac Fac Upp War Hostile Shots Fired 725 | . 43 38 . 11 85 110 40 . 27 85 116 170 Missed 228 | . 15 5 . 4 31 34 19 . 6 24 28 62 Damage Taken 8858 | . 358 366 . 84 526 950 340 . 428 1367 1623 2816 Core 1551 | . 71 102 . 32 58 172 48 . 65 190 185 628 Absorbed by Shields . | . . . . . . . . . . . . . Redirected to Shielding 83 | . . . . . . . . . . . . 83 Regen/Repaired (Parts) 329 | . . . . . . . . . . . . 329 Core Remaining (%) 73 | 100 . . . 18 89 . . 68 92 . . . Volleys Fired 225 | . 19 19 . 1 28 39 28 . 1 40 37 13 Largest 3 | . 2 2 . 2 2 2 2 . 1 3 3 3 Hottest 244 | . 90 90 . 100 103 126 126 . 65 244 177 143 Shots Fired 453 | . 33 28 . 2 56 75 44 . 1 102 86 26 Gun 385 | . 33 28 . 2 56 70 28 . . 69 81 18 Cannon 60 | . . . . . . 5 16 . 1 33 5 . Launcher 8 | . . . . . . . . . . . . 8 Special . | . . . . . . . . . . . . . Kinetic 203 | . 13 6 . 1 28 13 . . . 65 77 . Thermal 214 | . 19 15 . 1 28 62 44 . 1 33 9 2 Explosive . | . . . . . . . . . . . . . Electromagnetic 12 | . 1 7 . . . . . . . 4 . . Entropic 24 | . . . . . . . . . . . . 24 Robot Hit Streak 18 | . 5 4 . 2 18 7 12 . . 15 11 7 Robot Miss Streak 7 | . 4 2 . 1 7 4 2 . . 3 5 1 Penetration Max 1 | . . . . . . . . . . 1 1 . Secondary Targets 9 | . 2 . . . 1 2 . . . . 3 1 Max Gunslinging Chain 2 | . 1 . . . 1 1 . . . . 2 1 Shots Hit Robots 340 | . 16 18 . 1 40 55 35 . . 82 71 22 Core Hits 198 | . 11 8 . 1 16 24 15 . . 62 46 15 Critical Kills 4 | . . . . . . . . . . 2 2 . Critical Parts Destroyed 4 | . . . . . . . . . . 4 . . Critical Strikes 16 | . 2 . . . . 2 3 . . 6 3 . Burn 7 | . 2 . . . . 2 3 . . . . . Destroy 9 | . . . . . . . . . . 6 3 . Melee Attacks . | . . . . . . . . . . . . . Impact . | . . . . . . . . . . . . . Slashing . | . . . . . . . . . . . . . Piercing . | . . . . . . . . . . . . . Sneak Attacks . | . . . . . . . . . . . . . Combat Hostiles . | . . . . . . . . . . . . . Follow-up Attacks . | . . . . . . . . . . . . . Damage Inflicted 9801 | . 206 228 . 27 813 1012 803 . 53 2626 1154 2879 Guns 6226 | . 195 228 . 24 813 930 400 . . 1804 1105 727 Cannons 1105 | . . . . . . 82 403 . . 571 49 . Explosions 2396 | . . . . . . . . . . 244 . 2152 Melee . | . . . . . . . . . . . . . Ramming 74 | . 11 . . 3 . . . . 53 7 . . Kinetic 2740 | . 58 32 . . 237 132 . . . 1322 959 . Thermal 3749 | . 137 116 . 24 576 880 803 . . 979 195 39 Explosive 244 | . . . . . . . . . . 244 . . Electromagnetic 154 | . . 80 . . . . . . . 74 . . Impact . | . . . . . . . . . . . . . Slashing . | . . . . . . . . . . . . . Piercing . | . . . . . . . . . . . . . Entropic 2840 | . . . . . . . . . . . . 2840 Highest Corruption 17 | . . . . . . . . . 8 4 4 17 Average Corruption 3 | . . . . . . . . . 8 2 4 3 Corruption Purged . | . . . . . . . . . . . . . Corruption Blocked . | . . . . . . . . . . . . . Effects 27 | . . . . . . . . . 1 10 13 3 Message Errors 7 | . . . . . . . . . . 1 5 1 Matter Fused 3 | . . . . . . . . . 1 . 1 1 Heat Flow Errors 4 | . . . . . . . . . . 2 2 . Data Loss (minor) 5 | . . . . . . . . . . 2 2 1 Data Loss (major) 1 | . . . . . . . . . . 1 . . Misfires 2 | . . . . . . . . . . 1 1 . Alerts 3 | . . . . . . . . . . 1 2 . Weapon Failures 2 | . . . . . . . . . . 2 . . Overload Shots . | . . . . . . . . . . . . . Overflow Damage 227 | . . . . . . . . . 23 69 . 135 Projectiles . | . . . . . . . . . . . . . Explosions 204 | . . . . . . . . . . 69 . 135 Melee 23 | . . . . . . . . . 23 . . . Knockbacks 20 | . . . . . . . . . 1 18 1 . Impact 1 | . . . . . . . . . 1 . . . Kinetic 18 | . . . . . . . . . . 17 1 . Secondary 1 | . . . . . . . . . . 1 . . Self-Inflicted Damage 294 | . 5 . . 1 . . . . 26 117 . 145 Shots 3 | . . . . . . . . . . 2 . 1 Rammed 4 | . 1 . . 1 . . . . 1 1 . . Targets Rammed 4 | . 1 . . 1 . . . . 1 1 . . Kicked . | . . . . . . . . . . . . . Crushed . | . . . . . . . . . . . . . Highest Temperature 314 | . 58 314 . 21 . 12 48 . . 224 80 . Average Temperature 70 | . 18 176 . 9 . 7 29 . . 76 32 . Received Heat Transfer 1504 | . 42 174 . 48 54 264 150 . . 189 583 . Effects 2 | . . 2 . . . . . . . . . . Interference 1 | . . 1 . . . . . . . . . . Short Circuit 1 | . . 1 . . . . . . . . . . Siege Activations . | . . . . . . . . . . . . . Robots Corrupted 1 | . . . . . . . . . 1 . . . Combat Hostiles . | . . . . . . . . . . . . . Parts Fried 3 | . . . . . . . . . 3 . . . Impact Corruptions 1 | . . . . . . . . . 1 . . . Robots Melted 1 | . . . . . . 1 . . . . . . Combat Hostiles 1 | . . . . . . 1 . . . . . . Parts Melted 12 | . . . . . 1 7 2 . . 1 1 . Heat Transferred 7619 | . 555 298 . 50 1300 1876 1517 . . 1624 325 74 Parts Sabotaged . | . . . . . . . . . . . . . Parts Stolen . | . . . . . . . . . . . . . Parts Stripped . | . . . . . . . . . . . . . Power Chain Reactions . | . . . . . . . . . . . . . Alert | -11 -10 -10 -10 -9 -8 -7 -7 -7 -6 -5 -5 -5 ------- Run | Yrd Mat Min Exi Min Mat Fac Low Low Fac Fac Upp War Peak Influence 323 | . 274 110 . . 210 243 . . 56 323 . . Initial 93 | . . . . . . 93 . . 44 4 . . Average 86 | . 113 50 . . 83 114 . . 48 79 . . Maximum Alert Level 1 | . 1 . . . 1 1 . . . 1 . . Low Security (%) 84 | . 77 100 . 100 91 80 . . 100 80 . . Level 1 15 | . 22 . . . 8 19 . . . 19 . . Level 2 . | . . . . . . . . . . . . . Level 3 . | . . . . . . . . . . . . . Level 4 . | . . . . . . . . . . . . . Level 5 . | . . . . . . . . . . . . . High Security . | . . . . . . . . . . . . . Max Security . | . . . . . . . . . . . . . Squads Dispatched 14 | . 3 . . 1 1 4 . . . 5 . . Investigation 1 | . . . . 1 . . . . . . . . Extermination 1 | . . . . . . . . . . 1 . . Reinforcement 9 | . 3 . . . 1 1 . . . 4 . . Assault . | . . . . . . . . . . . . . Garrison 3 | . . . . . . 3 . . . . . . Intercept . | . . . . . . . . . . . . . Searches Triggered . | . . . . . . . . . . . . . Construction Impeded . | . . . . . . . . . . . . . Haulers Reinforced 1 | . . . . . . . . . . 1 . . Active Scanning Responses . | . . . . . . . . . . . . . Cargo Convoy Interrupts . | . . . . . . . . . . . . . Stealth | -11 -10 -10 -10 -9 -8 -7 -7 -7 -6 -5 -5 -5 --------- Run | Yrd Mat Min Exi Min Mat Fac Low Low Fac Fac Upp War Distress Signals 5 | . . . . . 2 1 . . . 1 . 1 Communications Jammed . | . . . . . . . . . . . . . Distress Signals . | . . . . . . . . . . . . . Times Spotted 124 | . 22 5 . 3 17 13 9 . 2 20 14 19 Peak Tracking Total 9 | . 5 3 . 3 4 4 4 . 2 4 4 9 Tactical Retreats 10 | . 2 . . . 2 1 1 . . 1 1 2 Traps | -11 -10 -10 -10 -9 -8 -7 -7 -7 -6 -5 -5 -5 ------- Run | Yrd Mat Min Exi Min Mat Fac Low Low Fac Fac Upp War Traps Triggered 2 | . 1 . . . . . . . 1 . . . Indirectly . | . . . . . . . . . . . . . Trap Hack Attempts . | . . . . . . . . . . . . . Triggered . | . . . . . . . . . . . . . Disarmed . | . . . . . . . . . . . . . Reprogrammed . | . . . . . . . . . . . . . Reused . | . . . . . . . . . . . . . Traps Extracted . | . . . . . . . . . . . . . Installed . | . . . . . . . . . . . . . Triggered 26 | . . . . . . . 2 . . . . 24 Machines | -11 -10 -10 -10 -9 -8 -7 -7 -7 -6 -5 -5 -5 ---------- Run | Yrd Mat Min Exi Min Mat Fac Low Low Fac Fac Upp War Machines Disabled 3 | . . . . . . . . . . 3 . . Max in Single Turn 2 | . . . . . . . . . . 2 . . Garrison Access 2 | . . . . . 1 . . . 1 . . . Machines Repaired . | . . . . . . . . . . . . . Machines Dismantled . | . . . . . . . . . . . . . Machines Sabotaged . | . . . . . . . . . . . . . Overloaded Fab Kills . | . . . . . . . . . . . . . Hacking | -11 -10 -10 -10 -9 -8 -7 -7 -7 -6 -5 -5 -5 --------- Run | Yrd Mat Min Exi Min Mat Fac Low Low Fac Fac Upp War Machines Accessed 21 | . 3 . 1 1 8 2 . . 2 1 . 3 Terminals 14 | . 3 . . . 7 2 . . 1 1 . . Fabricators . | . . . . . . . . . . . . . Repair Stations . | . . . . . . . . . . . . . Recycling Units . | . . . . . . . . . . . . . Scanalyzers . | . . . . . . . . . . . . . Garrison Access 2 | . . . . . 1 . . . 1 . . . Total Hacks 66 | . 6 . 23 1 20 5 . . 5 2 . 4 Successful 52 | . 2 . 23 1 15 4 . . 2 1 . 4 Failed 14 | . 4 . . . 5 1 . . 3 1 . . Catastrophic 4 | . 1 . . . . 1 . . 1 1 . . Database Lockouts . | . . . . . . . . . . . . . Manual 34 | . 6 . 1 . 17 5 . . 2 2 . 1 Terminals 32 | . 6 . . . 17 5 . . 2 2 . . Fabricators . | . . . . . . . . . . . . . Repair Stations . | . . . . . . . . . . . . . Recycling Units . | . . . . . . . . . . . . . Scanalyzers . | . . . . . . . . . . . . . Garrison Access 6 | . . . . . 3 . . . 3 . . . Terminal Hacks 35 | . . . 23 1 4 2 . . 1 . . 4 Record 25 | . . . 23 . . . . . . . . 2 Open Door 3 | . . . . 1 . . . . . . . 2 Branch Access Points 3 | . . . . . 2 1 . . . . . . Scanalyzer Index 1 | . . . . . 1 . . . . . . . Locate Traps 3 | . . . . . 1 1 . . 1 . . . Fabricator Hacks . | . . . . . . . . . . . . . Repair Station Hacks . | . . . . . . . . . . . . . Recycling Unit Hacks . | . . . . . . . . . . . . . Scanalyzer . | . . . . . . . . . . . . . Garrison Access Hacks 2 | . . . . . 1 . . . 1 . . . Seal Access 2 | . . . . . 1 . . . 1 . . . Unauthorized Hacks 15 | . 2 . . . 10 2 . . . 1 . . Terminals 15 | . 2 . . . 10 2 . . . 1 . . Assimilate 4 | . . . . . 3 1 . . . . . . Botnet 10 | . 2 . . . 6 1 . . . 1 . . Operators 1 | . . . . . 1 . . . . . . . Fabricators . | . . . . . . . . . . . . . Repair Stations . | . . . . . . . . . . . . . Recycling Units . | . . . . . . . . . . . . . Scanalyzers . | . . . . . . . . . . . . . Garrison Access . | . . . . . . . . . . . . . Data Cores Recovered 1 | . . . . . 1 . . . . . . . Used . | . . . . . . . . . . . . . Hacking Detections 13 | . 3 . . . 6 1 . . 2 1 . . Full Trace Events . | . . . . . . . . . . . . . Feedback Events . | . . . . . . . . . . . . . Feedback Blocked . | . . . . . . . . . . . . . Robot Schematics Acquired . | . . . . . . . . . . . . . Robots Built . | . . . . . . . . . . . . . Authchips . | . . . . . . . . . . . . . Time . | . . . . . . . . . . . . . Total Robot Build Rating . | . . . . . . . . . . . . . Part Schematics Acquired . | . . . . . . . . . . . . . Parts Built . | . . . . . . . . . . . . . Authchips . | . . . . . . . . . . . . . Time . | . . . . . . . . . . . . . Total Part Build Rating . | . . . . . . . . . . . . . Parts Repaired . | . . . . . . . . . . . . . Time . | . . . . . . . . . . . . . Parts Recycled . | . . . . . . . . . . . . . Recycled Matter . | . . . . . . . . . . . . . Retrieved Matter . | . . . . . . . . . . . . . Retrieved Components . | . . . . . . . . . . . . . Parts Scanalyzed . | . . . . . . . . . . . . . Part Schematics Acquired . | . . . . . . . . . . . . . Parts Damaged . | . . . . . . . . . . . . . Bothacking | -11 -10 -10 -10 -9 -8 -7 -7 -7 -6 -5 -5 -5 ------------ Run | Yrd Mat Min Exi Min Mat Fac Low Low Fac Fac Upp War Used RIF Installer . | . . . . . . . . . . . . . Robots Hacked . | . . . . . . . . . . . . . Non-combat . | . . . . . . . . . . . . . Combat . | . . . . . . . . . . . . . Robot Hacks Applied . | . . . . . . . . . . . . . Relay Couplers Released . | . . . . . . . . . . . . . Fabnet Peak Effective % . | . . . . . . . . . . . . . Robots Rewired . | . . . . . . . . . . . . . Allies Hacked . | . . . . . . . . . . . . . Hacks Repelled . | . . . . . . . . . . . . . Allies | -11 -10 -10 -10 -9 -8 -7 -7 -7 -6 -5 -5 -5 -------- Run | Yrd Mat Min Exi Min Mat Fac Low Low Fac Fac Upp War Total Allies . | . . . . . . . . . . . . . Largest Group . | . . . . . . . . . . . . . Highest-Rated Group . | . . . . . . . . . . . . . Highest-Rated Ally . | . . . . . . . . . . . . . Total Orders . | . . . . . . . . . . . . . Ally Attacks . | . . . . . . . . . . . . . Total Damage . | . . . . . . . . . . . . . Kills . | . . . . . . . . . . . . . Allies Corrupted . | . . . . . . . . . . . . . Allies Melted 2 | . . . . . . . . . . . . 2 Intel | -11 -10 -10 -10 -9 -8 -7 -7 -7 -6 -5 -5 -5 ------- Run | Yrd Mat Min Exi Min Mat Fac Low Low Fac Fac Upp War Robot Analysis Total . | . . . . . . . . . . . . . Derelict Logs Recovered 5 | . . . . 1 . . 2 1 . . 1 . Drone Launches . | . . . . . . . . . . . . . Drone Recoveries . | . . . . . . . . . . . . . Exploration | -11 -10 -10 -10 -9 -8 -7 -7 -7 -6 -5 -5 -5 ------------- Run | Yrd Mat Min Exi Min Mat Fac Low Low Fac Fac Upp War Turns Passed 8365 | . 838 167 641 127 1114 570 629 89 212 1530 874 1574 Spaces Moved 3460 | 1 237 76 473 85 509 182 231 58 154 511 278 665 Core 35 | . . . . . . . 1 . . . . 34 Treads 381 | . . . . . 218 102 . . . . . 61 Legs 36 | 1 35 . . . . . . . . . . . Wheels 2287 | . 202 76 473 85 291 . 45 58 154 119 214 570 Hover . | . . . . . . . . . . . . . Flight 721 | . . . . . . 80 185 . . 392 64 . Fastest Speed 50 | 120 120 135 135 135 140 150 155 155 105 150 205 50 Average Speed 198 | 120 132 138 135 136 194 235 237 155 131 234 268 224 Slowest Speed 1750 | 120 135 175 135 215 320 250 1750 155 155 431 434 560 Overloaded Moves . | . . . . . . . . . . . . . Propulsion Burnouts . | . . . . . . . . . . . . . Robots Hopped . | . . . . . . . . . . . . . Cave-ins Triggered . | . . . . . . . . . . . . . Exploration Rate (%) 31 | 2 54 18 82 20 44 7 39 6 7 15 36 80 Regions Visited 12 Branch Regions 7 Pre-discovered Areas 3 | . . 1 1 . . . 1 . . . . . Known Exits Taken 2 | . . . . . . 1 1 . . . . . Unknown Exits Taken 10 | 1 1 1 1 1 1 . . 1 1 1 1 . Scrap Searched 5 | . . 1 . 1 . . 1 . . . 2 . Spaces Dug . | . . . . . . . . . . . . . Terrain Destroyed 215 | . . . . . . . . . . 53 4 158 Melee . | . . . . . . . . . . . . . Projectile 12 | . . . . . . . . . . 6 4 2 AOE 203 | . . . . . . . . . . 47 . 156 Terrain Rammed . | . . . . . . . . . . . . . Walls Destroyed . | . . . . . . . . . . . . . Machines Disabled . | . . . . . . . . . . . . . Actions | -11 -10 -10 -10 -9 -8 -7 -7 -7 -6 -5 -5 -5 --------- Run | Yrd Mat Min Exi Min Mat Fac Low Low Fac Fac Upp War Total 4529 | . 727 108 475 92 577 248 269 57 160 762 328 726 Wait 646 | . 459 5 . . 9 7 . . . 160 6 . Move 3449 | . 236 75 472 85 508 181 230 57 153 510 277 665 Hop . | . . . . . . . . . . . . . Pick Up 60 | . 4 3 2 4 11 5 2 . . 15 3 11 Fast Attach 32 | . 1 2 . . 3 6 . . 3 6 1 10 Attach 32 | . 3 3 . . 3 4 2 . . 10 4 3 Detach 2 | . . . . . . 2 . . . . . . Swap 24 | . 1 1 . 2 5 2 1 . 1 5 . 6 Drop 53 | . 3 . . . 10 2 5 . 1 15 . 17 Fire 225 | . 19 19 . 1 28 39 28 . 1 40 37 13 Melee . | . . . . . . . . . . . . . Ram 3 | . 1 . . . . . . . 1 1 . . Kick . | . . . . . . . . . . . . . Crush . | . . . . . . . . . . . . . Escape Stasis . | . . . . . . . . . . . . . Rewire 3 | . . . 1 . . . 1 . . . . 1 Trap . | . . . . . . . . . . . . . Miscellaneous . | . . . . . . . . . . . . . Route ------- -11/Scrapyard -10/Materials (discovered 2 exits: [*Mat] / [*Min]) -10/Mines -10/Exiles -9/Mines -8/Materials -7/Factory (discovered 2 exits: *Low x2) -7/Lower Caves -7/Lower Caves -6/Factory (discovered 2 exits: *Fac / Low) -5/Factory -5/Upper Caves -5/Warlord History --------- Turn | Location | Event 1 | -11/Scrapyard | Discovered new exit (range 0) 1 | -11/Scrapyard | Entered Materials 207 | -10/Materials | Discovered new exit (range 14) 319 | -10/Materials | Build established: Mutant 824 | -10/Materials | Discovered new exit (range 12) 839 | -10/Materials | Entered Mines 840 | -10/Mines | Learned location of Storage (-9) 864 | -10/Mines | Met a Derelict bent on vengeance 883 | -10/Mines | Core integrity fell below 50% 919 | -10/Mines | Lost 4 parts (1p1n2w) 999 | -10/Mines | Deemed a non-threat by the Exiles lab entrance 1000 | -10/Mines | Discovered new exit (range 5) 1006 | -10/Mines | Entered Exiles 1040 | -10/Exiles | Met 8R-AWN 1062 | -10/Exiles | Met EX-HEX 1102 | -10/Exiles | Met EX-BIN 1120 | -10/Exiles | Aligned with FarCom system 1121 | -10/Exiles | Given EX-Vault access code 1156 | -10/Exiles | Opened EX-Vault 1166 | -10/Exiles | Found Prototype Flight Unit 1196 | -10/Exiles | Warned to stay clear of 0b10 Research branches 1240 | -10/Exiles | Met EX-DEC 1381 | -10/Exiles | Visited The Gauntlet 1595 | -10/Exiles | Learned location of Zion (-6) 1636 | -10/Exiles | Discovered new exit (range 10) 1647 | -10/Exiles | Left Exiles lab with Flying Fortress v7 1647 | -10/Exiles | Entered Mines 1658 | -9/Mines | Met a Derelict shopkeep closing up shop 1728 | -9/Mines | Discovered new exit (range 11) 1758 | -9/Mines | Learned Materials terminal intel 1773 | -9/Mines | Core integrity fell below 20% 1774 | -9/Mines | Entered Materials 1774 | -8/Materials | Evolved 4 slots: Propulsion x2, Utility x2 1775 | -8/Materials | Loaded intel: 12 terminal locations 2240 | -8/Materials | Discovered new exit (range 6) 2888 | -8/Materials | Entered Factory 2888 | -7/Factory | Evolved 2 slots: Utility x2 3083 | -7/Factory | Garrison activated, responded to threat 3247 | -7/Factory | Identified Flying Fortress v7 3270 | -7/Factory | Lost 6 parts (1p4n1w) 3322 | -7/Factory | Identified exit to Lower Caves 3458 | -7/Factory | Entered Lower Caves 3826 | -7/Lower Caves | Identified exit to Lower Caves 3868 | -7/Lower Caves | Attracted the attention of an 0b10 checkpoint 4087 | -7/Lower Caves | Entered another Lower Caves area 4117 | -7/Lower Caves | Discovered new exit (range 10) 4176 | -7/Lower Caves | Entered Factory 4176 | -6/Factory | Evolved 2 slots: Utility x2 4177 | -6/Factory | Identified exit to Lower Caves 4366 | -6/Factory | Discovered new exit (range 15) 4388 | -6/Factory | Entered another Factory area 4388 | -5/Factory | Evolved 2 slots: Utility x1, Weapon x1 4405 | -5/Factory | Lost 5 parts (2n2u1w) 4679 | -5/Factory | Build established: Gunner 5846 | -5/Factory | Discovered new exit (range 15) 5918 | -5/Factory | Entered Upper Caves 6176 | -5/Upper Caves | Learned Factory stockpile data 6305 | -5/Upper Caves | Lost 6 parts (1p3n2u) 6567 | -5/Upper Caves | Build established: Scavenger-Gunner 6779 | -5/Upper Caves | A Derelict revealed a hidden shortcut to "reach the base" 6792 | -5/Upper Caves | Entered Warlord 6867 | -5/Warlord | System corruption cleaned by Quarantine Array 6973 | -5/Warlord | Found Prototype Device 6973 | -5/Warlord | Identified Minesniffer Drone Bay 7205 | -5/Warlord | Met Warlord 7230 | -5/Warlord | Warlord's base attacked by MAIN.C 7355 | -5/Warlord | Found Prototype Energy Gun 7358 | -5/Warlord | Found Prototype Energy Gun 7366 | -5/Warlord | Found Prototype Energy Gun 7369 | -5/Warlord | Found Prototype Energy Gun 7413 | -5/Warlord | Found Prototype Launcher 7413 | -5/Warlord | Identified Vortex Catalyst Activator 7416 | -5/Warlord | Identified Vortex Rifle (x4) 7580 | -5/Warlord | Warlord forces counterattacked 7905 | -5/Warlord | Warlord base infiltrated, sounded retreat 7973 | -5/Warlord | Spotted Executioner 7992 | -5/Warlord | Destroyed Executioner 8100 | -5/Warlord | Spotted Striker 8103 | -5/Warlord | Destroyed Striker 8300 | -5/Warlord | Spotted Striker 8319 | -5/Warlord | System corruption reached 10% 8320 | -5/Warlord | Core integrity fell below 50% 8349 | -5/Warlord | Released all parts (7) 8357 | -5/Warlord | Core integrity fell below 20% 8366 | -5/Warlord | Destroyed by P-80 Master with Gamma Rifle Last Messages --------------- 08333_ Vortex Rifle destroyed. 08339_ Spk. Medium Treads destroyed. 08342_ P-70 Sage resets Striker, system corruption cleaned. 08343_ Critical hit (Impale). 08343_ Field Laser destroyed. 08343_ Vortex Rifle destroyed. 08345_ %PL>X6TAQO2|P2GJOVICBW>FY6XR=M 08349_ Arm. Medium Treads destroyed. 08349_ Released Cooling System. 08349_ Released Huge Storage Unit. 08349_ Released Adv. Cooling System. 08349_ Released Adv. Targeting Computer. 08349_ Released Minesniffer Drone Bay. 08349_ Released Particle Reactor. 08349_ Released Arm. Medium Treads. 08357_ Striker triggered Fire Trap. 08357_ Burning plasma bursts from the floor. 08363_ The unstable cave ceiling collapses. 08365_ P-70 Sage resets B-74 Champion, system corruption cleaned. 08366_ Anti-Ion Cluster explodes. Map ----- +----------------------------------------------------+ | | | | | | | | | ?????????????????????????????????????????????????? | | ?????????????????????????????????????????????????? | | ????????????????????????????????#######??????????? | | ????????????????????????????????# #?????????? | | ????????????????????????????????# #?????????? | | ????????????????????????????????# #?????????? | | ????????????????????????????????# #?????????? | | ????????????????????????????????# #?????##### | | ????????????????????????????????# #??#### | | ????????????????????##??????????# #??# ## | | ?????????????????#### #####+###?# ####"## | | ??????????????##+# ?+ ## ## | | ##????????????# ### / + | | "#???????????## # ## ^## | | "#?????????? ## ## ## ! | | "#?????????? # ## ## | | "#?????????? # ####/## # | | "#????????? b # ! | | "#?????????? p p *!+ | | "#????????????? !!]%" | | "#???????????????### ########=/=]]# | | #????????????# @ #??????##=!!*##### | | #????????????# ### ###???????#/!=##???? | | #????????????# ! [ ????#####?????????#/!%#????? | | +#?????######## ! [ ??????????????????###![]#????? | | #?????# ## ! ????????????????????# #=*=#????? | | #?????# ## ???????????#####???????#" !#????? | | #?????# #?????????????""""##??????## % #????? | | ##?????# #?????????????? ""#???????# #????? | | ???????# !! #????????#+???? "#??##???# %##??## | | ???????# ! / #????????# ????# ""#??# #### "#### | | ???????# // #????????# ????# "??## #! =] | | ??###### #????????# ??### #?##! #%% % !# [ | | ### # #????????# ### ##+###=!%[ % != | | # #????????# [!%=% != %= % | | + #???????## [!= *[=*[ [! ==% | | ### # #???????# % != % !===%[ % | | ??####/#######???????## **! %%= | | ###### #?????######## ###+## ## = [%[== | | #?????#""!!!## # # # [ %[%==!! | | #?????#""! !## # ?## * [#] | | #?????#"" + " ## % # [! | | #?????#""!!!## # # # = | | ##########?????######## # # ! | | ######????????????????# + % #=[== # ### | | X#????????????????# # !#![=|*% ###?? | +----------------------------------------------------+ Best States ------------- Heat Dissipation 117 Energy Generation 23 Energy Capacity 340 Matter Stores 300 Matter Capacity 300 Sight Range 16 Terrain Scan Density 10 Armor Coverage 600 Weapon Shielding 66 Evasion (%) 55 Targeting Accuracy 14 Recoil Reduction 4 Kinecelleration 30 Offensive Hacking 10 Item Schematics ----------------- None Robot Schematics ------------------ None Fabricated ------------ Nothing Alien Tech Used ----------------- None Achievements -------------- None Challenges ------------ None Game ------ Seed SingularityBeamVibroblade Manual? 0 Play Time 00:55:01 Cumulative 119.2 hours Start 2025.03.12 @ 17:37:22 End 2025.03.12 @ 19:28:14 Sessions 1 Manual Loads 0 Difficulty Rogue Special Mode None Game No. 176 Rogue 159 Adventurer 15 Explorer 2 Win Type - Total 1 Types 1/0/0/0/0/0/0/0/0 Lore% 22 Gallery% 56 Achievement% 45 Wizard Run 0 Options --------- Layout 0 ASCII 0 Keyboard 0 Movement Arrows Keybinds 0 Fullscreen 1 Font 36/Smallcaps Map View 76x50 Zoom Use 0% Tactical HUD 1 Map Filters NONE Filters NONE Steam 1 RUN: c96c0fbd-b044-4a11-845a-1e6a2be69649